bitfinex-derivatives/quotes_SOLF0:USTF0_20250907
["timestamp","ask_amount","ask_price","bid_price","bid_amount"]
[1757232688262,5.73,203.2,203.14,4.45491266]
[1757232688461,5.73,203.2,203.13,7.4]
[1757232688663,5.73,203.2,203.14,4.45568629]
[1757232688962,5.73,203.2,203.13,7.4]
[1757232689163,5.73,203.2,203.14,4.45568629]
[1757232689362,5.73,203.2,203.13,7.4]
[1757232689563,5.73,203.2,203.14,4.45593156]
[1757232689763,5.73,203.2,203.13,7.4]
[1757232689965,5.73,203.2,203.14,4.45593156]
[1757232690164,5.73,203.2,203.13,7.4]
[1757232690365,8.29002179,203.22,203.15,7.4]
[1757232690761,5.73,203.23,203.17,7.4]
[1757232693265,122.65985163,203.24,203.13,6.82935163]
[1757232693467,5.75,203.23,203.15,7.4]
[1757232693669,5.75,203.23,203.17,7.4]
[1757232696674,5.75,203.23,203.18,4.45306344]
[1757232696971,5.75,203.23,203.17,7.4]
[1757232697172,5.75,203.23,203.18,4.45304]
[1757232697368,5.75,203.23,203.14,4.4294]
[1757232697569,5.75,203.23,203.16,7.4]
[1757232697772,122.65985163,203.24,203.17,4.45261861]
[1757232697969,128.40985163,203.24,203.18,11.85261861]
[1757232698268,128.40985163,203.24,203.18,7.4]
[1757232705781,126.01,203.24,203.18,7.4]
[1757232707586,5.75,203.23,203.18,7.4]
[1757232707884,5.75,203.23,203.14,7.4]
[1757232708085,5.75,203.23,203.16,7.4]
[1757232708282,5.75,203.23,203.17,4.45230025]
[1757232708482,5.75,203.23,203.18,4.45230025]
[1757232708683,5.75,203.23,203.14,7.4]
[1757232708888,5.75,203.23,203.15,4.45215562]
[1757232709092,5.75,203.23,203.17,7.4]
[1757232709285,120.26,203.24,203.18,4.45215562]
[1757232709485,5.75,203.23,203.17,7.53]
[1757232709790,5.75,203.23,203.18,4.4517626]
[1757232709991,120.26,203.24,203.19,7.53]
[1757232710187,5.75,203.23,203.19,7.53]
[1757232710693,120.26,203.24,203.19,7.53]
[1757232711082,5.75,203.23,203.19,7.53]
[1757232711988,120.26,203.24,203.15,7.53]
[1757232712185,5.75,203.23,203.16,4.45161446]
[1757232712392,5.75,203.23,203.17,4.45161446]
[1757232712591,5.75,203.23,203.15,7.53]
[1757232712794,5.75,203.23,203.17,7.53]
[1757232718997,11.27734508,203.23,203.17,7.53]
[1757232723301,5.52734508,203.23,203.18,4.45921107]
[1757232723494,5.52734508,203.23,203.19,7.53]
[1757232723693,5.75,203.22,203.19,7.53]
[1757232724594,5.52734508,203.23,203.19,7.53]
[1757232724798,5.75,203.22,203.19,7.53]
[1757232726000,5.52734508,203.23,203.19,7.53]
[1757232726301,11.27734508,203.22,203.19,7.53]
[1757232727998,5.52734508,203.22,203.19,7.53]
[1757232728204,5.75,203.21,203.19,7.53]
[1757232728902,5.75,203.21,203.15,7.53]
[1757232729103,5.75,203.21,203.16,4.46068827]
[1757232729306,5.75,203.21,203.17,4.46068827]
[1757232729600,5.75,203.21,203.19,7.53]
[1757232729797,5.75,203.21,203.15,7.53]
[1757232730002,5.75,203.21,203.16,4.46107458]
[1757232730203,5.75,203.21,203.17,11.99107458]
[1757232730404,5.52734508,203.22,203.18,4.46107458]
[1757232730603,5.52734508,203.22,203.17,7.53]
[1757232730806,5.52734508,203.22,203.18,4.46151204]
[1757232731104,5.75,203.21,203.15,7.53]
[1757232731303,5.75,203.21,203.16,11.99158426]
[1757232731603,5.52734508,203.22,203.18,7.53]
[1757232731906,5.75,203.21,203.18,7.53]
[1757232733001,5.52734508,203.22,203.18,7.53]
[1757232733200,5.75,203.21,203.18,7.53]
[1757232733402,5.52734508,203.22,203.18,7.53]
[1757232733798,5.75,203.21,203.18,7.53]
[1757232734000,5.52734508,203.22,203.18,7.53]
[1757232734201,5.75,203.21,203.18,7.53]
[1757232734401,5.52734508,203.22,203.19,4.4653316]
[1757232734601,5.75,203.21,203.18,7.53]
[1757232734804,5.75,203.21,203.19,4.4653316]
[1757232735005,5.52734508,203.22,203.18,7.53]
[1757232735206,5.52734508,203.21,203.19,4.4653316]
[1757232735404,5.75,203.2,203.18,7.53]
[1757232735605,5.75,203.2,203.19,4.46785718]
[1757232738210,5.75,203.2,203.19,11.99785718]
[1757232738612,11.27734508,203.21,203.19,11.99785718]
[1757232738811,11.27734508,203.21,203.19,7.53]
[1757232739711,131.45734508,203.21,203.19,7.53]
[1757232741513,11.27734508,203.21,203.19,7.53]
[1757232742011,131.43734508,203.21,203.19,7.53]
[1757232742712,11.27734508,203.21,203.19,7.53]
[1757232742913,131.43734508,203.21,203.19,7.53]
[1757232745709,11.27734508,203.21,203.19,7.53]
[1757232745911,120.16,203.2,203.19,7.53]
[1757232746212,131.43734508,203.21,203.19,11.99873261]
[1757232746515,131.43734508,203.21,203.19,7.53]
[1757232747513,11.27734508,203.21,203.19,7.53]
[1757232747713,120.16,203.2,203.19,7.53]
[1757232747915,11.27734508,203.21,203.19,11.9989004]
[1757232748212,120.14,203.2,203.19,7.53]
[1757232748413,120.14,203.2,203.19,11.99890087]
[1757232751017,11.27734508,203.21,203.19,11.99890087]
[1757232751212,120.14,203.2,203.19,7.53]
[1757232751414,120.14,203.2,203.19,11.99890236]
[1757232754317,125.89,203.2,203.19,4.46890236]
[1757232754618,5.75,203.2,203.19,4.46890236]
[1757232754820,125.89,203.2,203.19,4.46890236]
[1757232755720,5.75,203.2,203.19,4.46890236]
[1757232755917,125.87,203.2,203.19,4.46890236]
[1757232756614,5.75,203.2,203.19,4.46890236]
[1757232756815,125.87,203.2,203.19,4.46890236]
[1757232757116,5.52734508,203.21,203.2,8.18]
[1757232757317,125.64734508,203.21,203.2,12.64890236]
[1757232758220,120.12,203.21,203.2,12.64890236]
[1757232758420,125.87,203.21,203.2,4.46890236]
[1757232759817,11.27734508,203.24,203.2,4.46890236]
[1757232760021,120.12,203.22,203.21,12.64890236]
[1757232762322,125.87,203.22,203.21,12.64890236]
[1757232762719,125.87,203.22,203.21,4.46890236]
[1757232763421,125.87,203.22,203.18,8.18]
[1757232763422,5.75,203.21,203.18,8.18]
[1757232763622,5.75,203.21,203.19,12.69370892]
[1757232763817,5.75,203.21,203.2,4.51370892]
[1757232767225,120.12,203.22,203.2,4.51370892]
[1757232767226,125.87,203.22,203.2,12.69370892]
[1757232767428,125.87,203.22,203.2,8.18]
[1757232769523,120.12,203.22,203.21,4.50516442]
[1757232769829,125.86,203.22,203.21,4.50516442]
[1757232774732,125.86,203.22,203.21,4.5031807]
[1757232784343,5.74,203.27,203.21,12.0931807]
[1757232784544,120.04,203.26,203.22,4.49551518]
[1757232784749,5.74,203.24,203.21,7.59]
[1757232785050,81.62,203.25,203.22,4.49551518]
[1757232785251,5.74,203.24,203.21,7.59]
[1757232785444,81.62,203.25,203.22,6.03070807]
[1757232785644,5.74,203.24,203.22,1.53557234]
[1757232786043,5.74,203.24,203.2,9.12557234]
[1757232786240,81.62,203.25,203.21,4.49516036]
[1757232786443,5.74,203.24,203.22,4.49516036]
[1757232786648,5.74,203.24,203.2,9.12557234]
[1757232786847,81.62,203.25,203.21,4.49505003]
[1757232787048,5.74,203.24,203.22,4.49505003]
[1757232787249,5.74,203.24,203.2,9.12557234]
[1757232787447,81.62,203.25,203.21,4.49479145]
[1757232787645,5.74,203.24,203.22,4.49479145]
[1757232787852,81.62,203.25,203.21,7.59]
[1757232788053,5.74,203.24,203.22,4.49479145]
[1757232788353,81.62,203.25,203.21,7.59]
[1757232788550,81.62,203.25,203.22,4.49458602]
[1757232788754,5.74,203.24,203.21,7.59]
[1757232788951,81.62,203.25,203.22,4.49458602]
[1757232789153,5.74,203.24,203.2,1.53557234]
[1757232789353,5.74,203.24,203.21,4.49464508]
[1757232789552,5.74,203.24,203.22,4.49464508]
[1757232789751,5.74,203.24,203.2,9.12557234]
[1757232789951,81.62,203.25,203.21,4.49442643]
[1757232790153,81.62,203.25,203.2,9.12557234]
[1757232790354,81.62,203.25,203.21,4.49502746]
[1757232790555,81.62,203.25,203.22,4.49482178]
[1757232790757,5.74,203.24,203.2,9.12557234]
[1757232790949,81.62,203.25,203.21,4.49482178]
[1757232791152,81.62,203.25,203.22,4.49482178]
[1757232791452,5.74,203.24,203.2,9.12557234]
[1757232791654,81.62,203.25,203.21,4.49485246]
[1757232791847,81.62,203.25,203.22,4.49485246]
[1757232792052,5.74,203.24,203.2,9.12557234]
[1757232792258,81.62,203.25,203.21,4.49496603]
[1757232792456,81.62,203.25,203.22,4.49496603]
[1757232792657,5.74,203.24,203.2,9.12557234]
[1757232792856,81.62,203.25,203.21,4.49491997]
[1757232793053,5.74,203.24,203.22,4.49491997]
[1757232793359,5.74,203.24,203.19,1.53557234]
[1757232793658,5.74,203.24,203.2,4.49544873]
[1757232793858,5.74,203.24,203.21,4.49544873]
[1757232794161,81.62,203.25,203.19,1.53557234]
[1757232794360,81.62,203.25,203.2,4.49561229]
[1757232794660,5.74,203.24,203.21,4.49561229]
[1757232794958,81.62,203.25,203.19,1.53557234]
[1757232795156,5.74,203.24,203.2,4.49566048]
[1757232795361,81.62,203.25,203.21,4.49566048]
[1757232795658,5.74,203.24,203.19,1.53557234]
[1757232795858,5.74,203.24,203.2,4.49590685]
[1757232796063,5.74,203.24,203.21,4.49590685]
[1757232796254,5.74,203.24,203.19,1.53557234]
[1757232796455,5.74,203.24,203.2,4.49619054]
[1757232796665,81.62,203.25,203.21,4.49619054]
[1757232796863,5.74,203.24,203.19,1.53557234]
[1757232797064,5.74,203.24,203.2,4.49630304]
[1757232797259,5.74,203.24,203.21,4.49630304]
[1757232797456,5.74,203.24,203.22,4.49630304]
[1757232797660,5.74,203.24,203.19,7.59]
[1757232797963,5.74,203.24,203.2,4.49708964]
[1757232798164,5.74,203.24,203.21,4.49708964]
[1757232798356,5.74,203.24,203.19,7.59]
[1757232798561,5.74,203.24,203.2,4.49749246]
[1757232798863,5.74,203.24,203.21,4.49749246]
[1757232799064,81.62,203.25,203.19,7.59]
[1757232799265,81.62,203.25,203.2,4.4978472]
[1757232799467,5.76,203.24,203.21,4.4978472]
[1757232799665,5.76,203.24,203.18,7.38]
[1757232799866,81.62,203.25,203.19,4.49794069]
[1757232800067,81.62,203.25,203.2,11.87794069]
[1757232800266,5.76,203.24,203.21,4.49794069]
[1757232800566,81.62,203.25,203.2,7.38]
[1757232800767,5.76,203.24,203.21,4.49844233]
[1757232800964,81.62,203.25,203.2,7.38]
[1757232801164,5.76,203.24,203.21,4.49844233]
[1757232801367,5.76,203.24,203.2,7.38]
[1757232801668,5.76,203.24,203.21,4.49900495]
[1757232801969,5.76,203.24,203.2,7.38]
[1757232802168,81.62,203.25,203.21,4.49900495]
[1757232802362,81.62,203.25,203.2,7.38]
[1757232802566,119.98,203.25,203.21,4.49965222]
[1757232802859,5.76,203.24,203.21,7.38]
[1757232803063,5.76,203.24,203.22,4.50009287]
[1757232803268,5.76,203.24,203.21,7.38]
[1757232803469,5.76,203.24,203.22,4.50016438]
[1757232803663,119.98,203.25,203.21,7.38]
[1757232803869,119.98,203.25,203.22,4.50016438]
[1757232804064,119.98,203.25,203.21,7.38]
[1757232804269,5.76,203.24,203.22,4.5006874]
[1757232804459,5.76,203.24,203.18,4.4286]
[1757232804665,5.76,203.24,203.2,7.38]
[1757232804866,5.76,203.24,203.22,7.38]
[1757232811676,5.73,203.24,203.17,7.38]
[1757232811871,131.23987207,203.25,203.19,7.38]
[1757232812077,125.50987207,203.25,203.21,7.38]
[1757232812380,125.50987207,203.25,203.22,4.50650055]
[1757232812579,5.73,203.24,203.21,7.38]
[1757232812875,5.73,203.24,203.22,4.5068457]
[1757232813077,5.73,203.24,203.21,7.38]
[1757232813271,125.50987207,203.25,203.22,4.50718375]
[1757232813468,125.50987207,203.25,203.21,7.38]
[1757232813676,125.50987207,203.25,203.22,4.50722925]
[1757232813976,5.73,203.24,203.21,7.38]
[1757232814178,5.73,203.24,203.22,4.50722925]
[1757232814376,5.73,203.24,203.21,7.38]
[1757232814679,5.73,203.24,203.22,4.50767149]
[1757232814979,5.73,203.24,203.21,7.38]
[1757232815177,5.73,203.24,203.22,4.50767149]
[1757232815378,5.73,203.24,203.18,7.38]
[1757232815577,125.50987207,203.25,203.19,4.50771955]
[1757232815775,5.73,203.24,203.21,7.38]
[1757232815974,5.73,203.24,203.22,4.50771955]
[1757232816170,125.50987207,203.25,203.21,7.38]
[1757232816477,5.73,203.24,203.22,4.50773441]
[1757232816680,5.73,203.24,203.21,7.38]
[1757232816979,5.73,203.24,203.22,4.50776927]
[1757232817178,5.73,203.24,203.21,7.38]
[1757232817380,5.73,203.24,203.22,4.50778726]
[1757232817681,5.73,203.24,203.21,7.38]
[1757232817872,5.73,203.24,203.22,4.50782071]
[1757232818075,5.73,203.24,203.21,7.38]
[1757232818274,5.73,203.24,203.22,4.507842]
[1757232818475,5.73,203.24,203.21,7.38]
[1757232818769,5.73,203.24,203.22,4.50787396]
[1757232818974,5.73,203.24,203.21,7.38]
[1757232819177,5.73,203.24,203.22,4.50787396]
[1757232819376,5.73,203.24,203.21,7.38]
[1757232819572,5.73,203.24,203.22,4.50786783]
[1757232819777,5.73,203.24,203.21,7.38]
[1757232819977,125.50987207,203.25,203.22,4.50786783]
[1757232820274,5.73,203.24,203.18,7.38]
[1757232820583,125.50987207,203.25,203.19,4.50786177]
[1757232820782,125.50987207,203.25,203.2,4.50786177]
[1757232820979,125.50987207,203.25,203.21,4.50786177]
[1757232821188,125.50987207,203.25,203.22,4.50786177]
[1757232821378,125.50987207,203.25,203.2,7.38]
[1757232821577,125.50987207,203.25,203.21,4.50785579]
[1757232821882,5.73,203.24,203.22,4.50785579]
[1757232822085,5.73,203.24,203.2,7.38]
[1757232822284,125.50987207,203.25,203.21,4.5078186]
[1757232822484,125.50987207,203.25,203.22,4.5078186]
[1757232822782,5.73,203.24,203.2,7.38]
[1757232822984,125.50987207,203.25,203.21,4.50801963]
[1757232823183,5.73,203.24,203.22,4.50801963]
[1757232823386,5.73,203.24,203.2,7.38]
[1757232823585,5.73,203.24,203.21,4.50801358]
[1757232823784,125.50987207,203.25,203.22,4.50801358]
[1757232823980,125.50987207,203.25,203.2,7.38]
[1757232824183,5.73,203.24,203.21,4.50801358]
[1757232824385,5.73,203.24,203.22,4.50801358]
[1757232824584,5.73,203.24,203.2,7.38]
[1757232824585,5.73,203.24,203.18,7.38]
[1757232824781,5.73,203.24,203.19,4.50800587]
[1757232824986,5.73,203.24,203.21,7.38]
[1757232825278,5.73,203.24,203.22,4.50800587]
[1757232825481,5.73,203.24,203.22,7.38]
[1757232830499,125.50987207,203.25,203.17,4.4288]
[1757232830698,5.74,203.24,203.18,12.61846655]
[1757232830899,131.24987207,203.25,203.2,8.11]
[1757232831100,5.74,203.24,203.21,4.50846655]
[1757232831400,125.50987207,203.25,203.22,4.50846655]
[1757232831595,125.50987207,203.25,203.17,4.4288]
[1757232831802,5.74,203.24,203.18,12.61872215]
[1757232832000,5.74,203.24,203.19,12.61872215]
[1757232832196,125.50987207,203.25,203.2,12.61872215]
[1757232832396,125.50987207,203.25,203.21,4.50872215]
[1757232832594,125.50987207,203.25,203.22,4.50872215]
[1757232832794,5.74,203.24,203.2,8.11]
[1757232832998,5.74,203.24,203.21,4.50902153]
[1757232833199,5.74,203.24,203.22,4.50902153]
[1757232833399,131.24987207,203.25,203.18,8.11]
[1757232833595,125.50987207,203.25,203.19,4.50938209]
[1757232833809,125.50987207,203.25,203.21,8.11]
[1757232834001,5.74,203.24,203.22,4.50938209]
[1757232834204,5.74,203.24,203.21,8.11]
[1757232834407,5.74,203.24,203.22,4.50984269]
[1757232834605,5.74,203.24,203.21,8.11]
[1757232834802,5.74,203.24,203.22,4.50984269]
[1757232835099,5.74,203.24,203.21,8.11]
[1757232835305,125.50987207,203.25,203.22,4.5130719]
[1757232835506,5.74,203.24,203.21,8.11]
[1757232835804,5.74,203.24,203.22,4.51318785]
[1757232835993,5.74,203.24,203.21,8.11]
[1757232836198,125.50987207,203.25,203.22,4.51318785]
[1757232836398,11.26987207,203.24,203.23,4.51318785]
[1757232843506,5.52987207,203.24,203.23,12.62318785]
[1757232844313,11.26987207,203.24,203.23,4.51318785]
[1757232844714,5.52987207,203.24,203.23,12.62318785]
[1757232846302,125.50987207,203.25,203.23,12.62318785]
[1757232846602,125.50987207,203.25,203.23,8.11]
[1757232848215,131.24987207,203.25,203.23,8.11]
[1757232848407,5.74,203.24,203.19,4.4284]
[1757232848609,5.74,203.24,203.21,8.11]
[1757232849014,5.74,203.24,203.22,4.51349934]
[1757232849209,5.74,203.24,203.23,4.51349934]
[1757232851415,131.24987207,203.25,203.23,12.62349934]
[1757232851616,131.24987207,203.25,203.23,8.11]
[1757232852718,125.50987207,203.25,203.23,8.11]
[1757232852914,5.74,203.24,203.23,8.11]
[1757232853213,5.74,203.24,203.23,12.6233004]
[1757232856720,5.74,203.24,203.23,4.5133004]
[1757232859720,5.74,203.24,203.23,12.6733004]
[1757232862427,5.74,203.24,203.23,7.7582576]
[1757232862916,119.98,203.25,203.23,7.7582576]
[1757232863121,126.14,203.25,203.23,7.7582576]
[1757232863516,6.16,203.24,203.19,1.53491457]
[1757232863712,126.14,203.25,203.19,1.53491457]
[1757232863918,119.8,203.23,203.19,1.53491457]
[1757232864426,119.8,203.23,203.2,8.16]
[1757232864624,119.8,203.23,203.19,1.53491457]
[1757232865021,119.8,203.23,203.2,8.16]
[1757232865622,119.8,203.23,203.19,1.53491457]
[1757232866024,119.8,203.23,203.2,8.16]
[1757232866327,119.8,203.23,203.19,1.53491457]
[1757232866522,119.8,203.23,203.2,8.16]
[1757232866723,119.8,203.23,203.19,1.53491457]
[1757232866919,119.8,203.23,203.2,8.16]
[1757232867221,119.8,203.23,203.19,1.53491457]
[1757232867422,125.96,203.23,203.2,8.16]
[1757232869430,6.16,203.22,203.2,8.16]
[1757232873725,6.16,203.22,203.19,1.53491457]
[1757232873921,125.95,203.23,203.19,1.53491457]
[1757232874126,125.95,203.23,203.2,8.16]
[1757232874330,125.95,203.23,203.19,1.53491457]
[1757232874527,125.95,203.23,203.21,8.16]
[1757232878439,6.15,203.22,203.19,9.69491457]
[1757232878734,6.15,203.22,203.2,4.41794751]
[1757232878932,6.15,203.22,203.21,4.41794751]
[1757232885639,6.15,203.22,203.21,12.57794751]
[1757232886138,6.15,203.22,203.21,4.41794751]
[1757232890636,119.8,203.23,203.21,4.41794751]
[1757232890838,125.94,203.23,203.18,1.53491457]
[1757232891038,6.14,203.22,203.2,7.4]
[1757232891241,6.14,203.22,203.21,4.4177751]
[1757232892544,6.14,203.22,203.21,4.41735723]
[1757232894343,6.14,203.22,203.21,11.81735723]
[1757232896743,119.8,203.23,203.21,11.81735723]
[1757232897042,125.94,203.23,203.21,7.4]
[1757232897644,125.94,203.23,203.18,5.96351457]
[1757232897844,125.94,203.23,203.2,7.4]
[1757232898041,125.94,203.23,203.21,11.82028759]
[1757232898242,125.94,203.23,203.21,7.4]
[1757232898843,125.94,203.23,203.22,4.41917565]
[1757232905944,125.94,203.23,203.19,1.53491457]
[1757232906151,6.14,203.22,203.2,4.41953866]
[1757232906350,6.14,203.22,203.21,4.41953866]
[1757232916659,6.14,203.22,203.21,4.42377368]
[1757232927778,6.14,203.22,203.21,4.42366821]
[1757232933273,5.52987207,203.22,203.15,153.93368522]
[1757232933472,6.15,203.2,203.16,12.39448977]
[1757232933672,6.15,203.2,203.17,4.42448977]
[1757232933879,119.6,203.21,203.18,4.42448977]
[1757232934177,6.15,203.2,203.19,4.42448977]
[1757232936177,6.15,203.2,203.16,7.97]
[1757232936382,6.15,203.2,203.18,7.97]
[1757232937383,6.15,203.2,203.15,153.93368522]
[1757232937582,6.15,203.2,203.16,12.3931787]
[1757232937780,6.15,203.2,203.17,4.4231787]
[1757232937979,119.6,203.21,203.18,4.4231787]
[1757232938181,119.6,203.21,203.16,7.97]
[1757232938382,119.6,203.21,203.17,4.42281804]
[1757232938583,119.6,203.21,203.18,4.42281804]
[1757232938784,119.6,203.21,203.16,7.97]
[1757232938986,119.6,203.21,203.17,4.42281804]
[1757232939284,119.6,203.21,203.18,4.42281804]
[1757232939488,6.15,203.22,203.2,7.97]
[1757232939684,119.58,203.22,203.21,7.97]
[1757232939885,125.73,203.22,203.21,7.97]
[1757232940082,125.73,203.22,203.16,7.97]
[1757232940282,125.73,203.22,203.17,4.42211459]
[1757232940483,125.73,203.22,203.19,7.97]
[1757232941891,6.15,203.21,203.19,7.97]
[1757232945288,6.15,203.21,203.16,7.97]
[1757232945593,6.15,203.21,203.18,7.97]
[1757232945794,119.58,203.22,203.19,4.4217887]
[1757232945994,6.15,203.21,203.15,4.4292]
[1757232946195,6.15,203.21,203.16,4.42160752]
[1757232946494,6.15,203.21,203.17,4.42160752]
[1757232946691,6.15,203.21,203.19,7.97]
[1757232947396,6.15,203.21,203.2,4.42204257]
[1757232953299,6.15,203.21,203.2,4.42415168]
[1757232956695,6.15,203.21,203.14,96.92885814]
[1757232956889,6.14,203.19,203.16,8.09]
[1757232957093,6.14,203.19,203.17,4.42127117]
[1757232957294,6.14,203.19,203.18,4.42127117]
[1757232963303,119.56,203.2,203.18,4.42127117]
[1757232963602,125.7,203.2,203.19,4.42127117]
[1757232970006,6.14,203.2,203.19,4.42127117]
[1757232970209,5.52987207,203.23,203.19,4.42127117]
[1757232970210,125.68,203.21,203.19,12.51127117]
[1757232970503,125.68,203.21,203.19,8.09]
[1757232970709,6.14,203.2,203.14,88.83885814]
[1757232971010,6.14,203.2,203.16,4.4291]
[1757232971218,6.14,203.2,203.18,8.09]
[1757232971516,6.14,203.2,203.19,4.42185546]
[1757232974312,5.52987207,203.22,203.19,4.42185546]
[1757232974518,5.52987207,203.23,203.21,8.09]
[1757232974715,6.14,203.23,203.21,8.09]
[1757232975717,6.14,203.23,203.16,8.09]
[1757232975913,6.14,203.23,203.19,8.09]
[1757232976118,6.14,203.23,203.21,8.09]
[1757232978723,11.66987207,203.24,203.19,4.4283]
[1757232978923,131.18987207,203.24,203.21,8.09]
[1757232979118,125.04987207,203.24,203.14,88.83885814]
[1757232979318,131.20987207,203.24,203.15,6.82682537]
[1757232979524,131.20987207,203.24,203.18,7.52]
[1757232979818,131.20987207,203.24,203.17,4.4289]
[1757232979819,6.16,203.23,203.19,11.94840857]
[1757232980124,6.16,203.23,203.15,2.3984168]
[1757232980125,11.68987207,203.23,203.2,4.42840857]
[1757232980325,11.68987207,203.23,203.16,7.52]
[1757232980526,11.68987207,203.23,203.17,4.42910111]
[1757232980720,5.52987207,203.23,203.18,11.94910111]
[1757232981021,5.52987207,203.23,203.19,4.42910111]
[1757232981218,6.16,203.22,203.2,4.42910111]
[1757232981419,7.06528061,203.23,203.18,7.52]
[1757232981618,7.06528061,203.23,203.19,4.42922956]
[1757232981821,6.16,203.22,203.2,4.42922956]
[1757232982017,6.16,203.22,203.18,7.52]
[1757232982222,5.52987207,203.23,203.19,4.42922956]
[1757232982419,7.06528061,203.23,203.2,4.42922956]
[1757232982623,7.06528061,203.23,203.18,7.52]
[1757232982826,7.06528061,203.23,203.19,4.42937298]
[1757232983125,7.06528061,203.23,203.18,7.52]
[1757232983126,7.06528061,203.23,203.2,4.42937298]
[1757232983326,7.06528061,203.23,203.18,7.52]
[1757232983528,6.16,203.22,203.19,4.42931307]
[1757232983728,7.06528061,203.23,203.2,4.42931307]
[1757232983927,6.16,203.22,203.18,7.52]
[1757232984127,7.06528061,203.23,203.19,4.42931307]
[1757232984328,7.06528061,203.23,203.2,4.42931307]
[1757232984530,6.16,203.22,203.18,7.52]
[1757232984723,6.16,203.21,203.19,4.4294929]
[1757232984929,7.06528061,203.23,203.2,4.4294929]
[1757232985229,7.06528061,203.23,203.18,7.52]
[1757232985430,7.06528061,203.23,203.19,4.42676315]
[1757232985625,6.16,203.22,203.2,4.42676315]
[1757232985829,6.16,203.22,203.17,7.52]
[1757232986030,5.52987207,203.23,203.18,11.94676315]
[1757232986229,6.16,203.22,203.19,4.42676315]
[1757232986429,6.16,203.22,203.2,4.42676315]
[1757232986631,6.16,203.22,203.18,7.52]
[1757232986930,6.16,203.22,203.19,4.4267825]
[1757232987127,5.52987207,203.23,203.2,4.4267825]
[1757232987328,5.52987207,203.23,203.18,7.52]
[1757232987633,5.52987207,203.23,203.19,4.42680384]
[1757232987832,5.52987207,203.23,203.2,4.42680384]
[1757232988032,6.16,203.22,203.18,7.52]
[1757232988327,6.16,203.22,203.19,4.42680384]
[1757232988628,5.52987207,203.23,203.2,4.42682721]
[1757232988830,6.16,203.22,203.18,7.52]
[1757232989024,5.52987207,203.23,203.19,11.94682721]
[1757232989225,5.52987207,203.23,203.2,4.42682721]
[1757232989424,6.16,203.22,203.19,7.52]
[1757232989621,5.52987207,203.23,203.2,4.42685266]
[1757232989820,6.16,203.22,203.19,7.52]
[1757232990025,5.52987207,203.23,203.2,4.42685266]
[1757232990225,5.52987207,203.23,203.19,7.52]
[1757232990428,5.52987207,203.23,203.2,4.42688024]
[1757232990733,5.52987207,203.23,203.19,7.52]
[1757232990933,5.52987207,203.23,203.2,4.42688024]
[1757232991130,6.15,203.22,203.19,7.52]
[1757232991330,5.52987207,203.23,203.2,4.42688024]
[1757232991531,5.52987207,203.23,203.19,7.52]
[1757232991832,6.15,203.22,203.2,4.42688018]
[1757232992027,6.15,203.22,203.19,7.52]
[1757232992225,6.15,203.22,203.2,4.42688379]
[1757232992434,5.52987207,203.23,203.19,7.52]
[1757232992635,6.15,203.22,203.2,4.42710385]
[1757232992829,5.52987207,203.23,203.19,7.52]
[1757232993036,6.15,203.22,203.2,11.94710385]